Cogmind - Beta 13 @@@ ROGUE MODE // 2024.05.14 @ 20:06:48 Player: naththebg Result: Destroyed self with Rocket Launcher Performance ------------- Evolutions (0) 0 Regions Visited (3) 600 Robots Destroyed (40) 200 Value Destroyed (852) 852 Prototype IDs (0) 0 Alien Tech Used (0) 0 Bonus (82) 82 TOTAL SCORE: 1734 Bonus ------- Follower Combat Kills 109 Friendly Fire -27 Cogmind --------- Core Integrity 0/250 Matter 129/300 Energy 160/160 System Corruption 1% Temperature Cool (0) Movement Rolling (95) Ox1 Location -10/Subcaves Parts ------- > --- POWER (1) -------- Light Nuclear Core > --- PROPULSION (2) --- Wheel Wheel > --- UTILITY (2) ------ Large Storage Unit Signal Interpreter > --- WEAPON (2) ------- Particle Gun Rocket Launcher > --- INVENTORY (15) --- Light Ion Engine Light Ion Engine Wheel Improved Heat Sink Disposable Heat Sink Disposable Heat Sink Experimental Sensor Array Particle Gun Battle Rifle Barrage Gun Battle Cannon Ripper Makeshift Sword Peak State ------------ > --- POWER ------------ Light Nuclear Core > --- PROPULSION ------- Wheel Compact Wheel > --- UTILITY ---------- Large Storage Unit Signal Interpreter > --- WEAPON ----------- Particle Gun Makeshift Sword > --- INVENTORY -------- Light Ion Engine Light Ion Engine Light Treads Light Treads Wheel Wheel Compact Wheel Improved Heat Sink Disposable Heat Sink Experimental Sensor Array Transport Network Coupler Medium Laser Particle Gun Barrage Gun Rocket Launcher [Rating: 16] Favorites ----------- Power Light Nuclear Core Engine Light Ion Engine Power Core Light Nuclear Core Propulsion Compact Wheel Treads Light Treads Wheel Compact Wheel Utility Large Storage Unit Device Tractor Beam Storage Large Storage Unit Processor Signal Interpreter Weapon Particle Gun Energy Gun Particle Gun Launcher Rocket Launcher Slashing Weapon Makeshift Sword Build | -11 -10 -10 -10 ------- Run | Yrd Mat Min Sub Slots Evolved . | . . . . Power . | . . . . Propulsion . | . . . . Utility . | . . . . Weapon . | . . . . Parts Attached 36 | 10 5 7 14 Power 3 | 1 . 2 . Engine 2 | 1 . 1 . Core 1 | . . 1 . Reactor . | . . . . Propulsion 17 | 6 2 3 6 Treads 2 | 2 . . . Leg . | . . . . Wheel 15 | 4 2 3 6 Hover . | . . . . Flight . | . . . . Utility 4 | 1 3 . . Device 1 | . 1 . . Storage 2 | 1 1 . . Processor 1 | . 1 . . Hackware . | . . . . Protection . | . . . . Artifact . | . . . . Weapon 12 | 2 . 2 8 Energy Gun 4 | 2 . 1 1 Energy Cannon . | . . . . Ballistic Gun . | . . . . Ballistic Cannon . | . . . . Launcher 4 | . . 1 3 Special Weapon . | . . . . Impact Weapon . | . . . . Slashing Weapon 4 | . . . 4 Piercing Weapon . | . . . . Special Melee Weapon . | . . . . Unidentified Prototypes . | . . . . Parts Lost 4 | . 1 1 2 Power . | . . . . Propulsion 3 | . . 1 2 Utility 1 | . 1 . . Weapon . | . . . . Highest Loss Streak 2 | . 1 1 2 To Critical Strikes . | . . . . Average Slot Usage (%) 99 | . 96 99 99 Engine 4 | . 14 8 . Core 9 | . . 5 14 Wheel 27 | . 28 27 27 Storage 14 | . 14 14 14 Processor 12 | . 4 14 14 Energy Gun 18 | . 28 20 14 Launcher 7 | . . 7 10 Slashing Weapon 1 | . . . 3 Naked Turns . | . . . . Heaviest Build 32 | 12 28 32 32 Greatest Support 40 | 40 20 26 36 Greatest Overweight (x) 2 | . 1 2 1 Average Overweight (x) . | . . 1 . Largest Inventory Capacity 15 | 8 15 15 15 Average Capacity 14 | 7 14 15 15 Most Carried 15 | 8 10 15 15 Average Carried 12 | 2 8 12 14 Final Capacity 15 | 8 15 15 15 Final Carried 15 | 8 10 15 13 Class Distribution -------------------- 63% | Mutant 36% | Scavenger-Mutant Dominant Class ---------------- Mutant | -10/Materials Mutant | -10/Mines Mutant | -10/Subcaves Resources | -11 -10 -10 -10 ----------- Run | Yrd Mat Min Sub Matter Collected 606 | 300 50 92 164 Remotely 40 | . 40 . . Salvage Created 1158 | 189 436 138 395 Parts 78 | 12 25 9 32 Haulers Intercepted 1 | . 1 . . Recyclers Shooed . | . . . . Parts Field Recycled . | . . . . Retrieved Matter . | . . . . Parts Self-Destructed 6 | . . . 6 Prevented . | . . . . Kills | -11 -10 -10 -10 ------- Run | Yrd Mat Min Sub Combat Hostiles Destroyed 27 | . 8 5 14 Guns 17 | . 8 3 6 AOE 10 | . . 2 8 Classes Destroyed 8 | 3 4 . 1 Worker 2 | 2 . . . Tunneler 6 | 5 . 1 . Hauler 1 | . 1 . . Recycler 2 | 1 1 . . Watcher 2 | . 2 . . Swarmer 9 | . 3 2 4 Grunt 8 | . 5 3 . Subdweller 10 | . . . 10 Best Kill Streak 7 | 7 4 2 4 Combat Bots Only 4 | . 4 2 4 Max Kills in Single Turn 3 | 1 1 2 3 Gunslinging . | . . . . Exploded 3 | . . 2 3 Melee . | . . . . Uniques/NPCs Destroyed . | . . . . Combat | -11 -10 -10 -10 -------- Run | Yrd Mat Min Sub Hostile Shots Fired 83 | . 19 28 36 Missed 31 | . 10 5 16 Damage Taken 789 | . 88 337 364 Core 254 | . 12 109 133 Absorbed by Shields . | . . . . Core Remaining (%) 100 | 100 . . . Volleys Fired 88 | 18 23 15 32 Largest 2 | 2 2 2 2 Hottest 115 | 100 100 115 98 Shots Fired 152 | 36 46 27 43 Gun 134 | 36 46 25 27 Cannon . | . . . . Launcher 18 | . . 2 16 Special . | . . . . Kinetic . | . . . . Thermal 134 | 36 46 25 27 Explosive 18 | . . 2 16 Electromagnetic . | . . . . Robot Hit Streak 16 | 7 16 9 12 Robot Miss Streak 3 | 2 3 3 1 Penetration Max . | . . . . Secondary Targets 1 | . 1 . . Max Gunslinging Chain 1 | . 1 . . Shots Hit Robots 103 | 28 28 17 30 Core Hits 57 | 8 18 11 20 Critical Kills . | . . . . Critical Parts Destroyed . | . . . . Critical Strikes 4 | 2 1 . 1 Burn 4 | 2 1 . 1 Melee Attacks 5 | . . . 5 Impact . | . . . . Slashing 5 | . . . 5 Piercing . | . . . . Sneak Attacks . | . . . . Combat Hostiles . | . . . . Follow-up Attacks . | . . . . Damage Inflicted 2076 | 348 356 342 1030 Guns 1302 | 348 356 267 331 Cannons . | . . . . Explosions 774 | . . 75 699 Melee . | . . . . Ramming . | . . . . Kinetic . | . . . . Thermal 1302 | 348 356 267 331 Explosive 774 | . . 75 699 Electromagnetic . | . . . . Impact . | . . . . Slashing . | . . . . Piercing . | . . . . Highest Corruption 1 | . . 1 1 Average Corruption 1 | . . 1 1 Corruption Purged . | . . . . Corruption Blocked . | . . . . Effects 11 | . . 3 8 Message Errors 4 | . . 1 3 Matter Fused 4 | . . . 4 Heat Flow Errors 1 | . . 1 . Data Loss (minor) 1 | . . . 1 Alerts 1 | . . 1 . Overload Shots . | . . . . Overflow Damage . | . . . . Projectiles . | . . . . Explosions . | . . . . Melee . | . . . . Knockbacks . | . . . . Impact . | . . . . Kinetic . | . . . . Secondary . | . . . . Self-Inflicted Damage 106 | . . 65 41 Shots 4 | . . 2 2 Rammed . | . . . . Targets Rammed . | . . . . Kicked . | . . . . Crushed . | . . . . Highest Temperature 312 | 233 273 312 . Average Temperature 107 | 93 103 124 . Received Heat Transfer 216 | . 30 144 42 Effects 1 | . . 1 . Interference 1 | . . 1 . Siege Activations . | . . . . Robots Corrupted . | . . . . Combat Hostiles . | . . . . Parts Fried . | . . . . Impact Corruptions . | . . . . Robots Melted 1 | 1 . . . Combat Hostiles . | . . . . Parts Melted 7 | 4 1 1 1 Heat Transferred 3848 | 1184 1110 703 851 Parts Sabotaged . | . . . . Parts Stolen . | . . . . Parts Stripped . | . . . . Power Chain Reactions . | . . . . Alert | -11 -10 -10 -10 ------- Run | Yrd Mat Min Sub Peak Influence 255 | 40 249 255 . Initial 96 | . 26 96 . Average 146 | 19 140 178 . Maximum Alert Level 1 | . 1 1 . Low Security (%) 72 | 100 78 63 . Level 1 27 | . 21 36 . Level 2 . | . . . . Level 3 . | . . . . Level 4 . | . . . . Level 5 . | . . . . High Security . | . . . . Max Security . | . . . . Squads Dispatched 3 | . 2 1 . Investigation 1 | . 1 . . Extermination . | . . . . Reinforcement 1 | . 1 . . Assault 1 | . . 1 . Garrison . | . . . . Intercept . | . . . . Searches Triggered . | . . . . Construction Impeded . | . . . . Haulers Reinforced . | . . . . Active Scanning Responses . | . . . . Cargo Convoy Interrupts . | . . . . Stealth | -11 -10 -10 -10 --------- Run | Yrd Mat Min Sub Distress Signals . | . . . . Communications Jammed . | . . . . Distress Signals . | . . . . Times Spotted 40 | . 10 13 17 Peak Tracking Total 5 | . 4 4 5 Tactical Retreats 2 | . . . 2 Traps | -11 -10 -10 -10 ------- Run | Yrd Mat Min Sub Traps Triggered 1 | . 1 . . Indirectly . | . . . . Trap Hack Attempts . | . . . . Triggered . | . . . . Disarmed . | . . . . Reprogrammed . | . . . . Reused . | . . . . Traps Extracted . | . . . . Installed . | . . . . Triggered . | . . . . Machines | -11 -10 -10 -10 ---------- Run | Yrd Mat Min Sub Machines Disabled 3 | . 1 . 2 Max in Single Turn 2 | . 1 . 2 Machines Repaired . | . . . . Machines Dismantled . | . . . . Machines Sabotaged . | . . . . Overloaded Fab Kills . | . . . . Hacking | -11 -10 -10 -10 --------- Run | Yrd Mat Min Sub Machines Accessed 2 | . . 1 1 Terminals . | . . . . Fabricators . | . . . . Repair Stations . | . . . . Recycling Units . | . . . . Scanalyzers . | . . . . Garrison Access . | . . . . Total Hacks 3 | . . 1 2 Successful 3 | . . 1 2 Failed . | . . . . Catastrophic . | . . . . Database Lockouts . | . . . . Manual 1 | . . . 1 Terminals . | . . . . Fabricators . | . . . . Repair Stations . | . . . . Recycling Units . | . . . . Scanalyzers . | . . . . Garrison Access . | . . . . Terminal Hacks 3 | . . 1 2 Record 2 | . . . 2 Open Door 1 | . . 1 . Fabricator Hacks . | . . . . Repair Station Hacks . | . . . . Recycling Unit Hacks . | . . . . Scanalyzer . | . . . . Garrison Access Hacks . | . . . . Unauthorized Hacks . | . . . . Terminals . | . . . . Fabricators . | . . . . Repair Stations . | . . . . Recycling Units . | . . . . Scanalyzers . | . . . . Garrison Access . | . . . . Data Cores Recovered . | . . . . Used . | . . . . Hacking Detections . | . . . . Full Trace Events . | . . . . Feedback Events . | . . . . Feedback Blocked . | . . . . Robot Schematics Acquired . | . . . . Robots Built . | . . . . Authchips . | . . . . Time . | . . . . Total Robot Build Rating . | . . . . Part Schematics Acquired . | . . . . Parts Built . | . . . . Authchips . | . . . . Time . | . . . . Total Part Build Rating . | . . . . Parts Repaired . | . . . . Time . | . . . . Parts Recycled . | . . . . Recycled Matter . | . . . . Retrieved Matter . | . . . . Retrieved Components . | . . . . Parts Scanalyzed . | . . . . Part Schematics Acquired . | . . . . Parts Damaged . | . . . . Bothacking | -11 -10 -10 -10 ------------ Run | Yrd Mat Min Sub Used RIF Installer . | . . . . Robots Hacked . | . . . . Non-combat . | . . . . Combat . | . . . . Robot Hacks Applied . | . . . . Relay Couplers Released . | . . . . Fabnet Peak Effective % . | . . . . Robots Rewired . | . . . . Allies Hacked . | . . . . Hacks Repelled . | . . . . Allies | -11 -10 -10 -10 -------- Run | Yrd Mat Min Sub Total Allies 1 | . . 1 . Largest Group 1 | . . 1 1 Highest-Rated Group 31 | . . 31 31 Highest-Rated Ally 31 | . . 31 31 Total Orders . | . . . . Ally Attacks 29 | . . 15 14 Total Damage 562 | . . 270 292 Kills 5 | . . 5 . Allies Corrupted . | . . . . Allies Melted . | . . . . Intel | -11 -10 -10 -10 ------- Run | Yrd Mat Min Sub Robot Analysis Total . | . . . . Derelict Logs Recovered 5 | . . 3 2 Drone Launches . | . . . . Drone Recoveries . | . . . . Exploration | -11 -10 -10 -10 ------------- Run | Yrd Mat Min Sub Turns Passed 2535 | 185 326 799 1225 Spaces Moved 2029 | 89 246 613 1081 Core 15 | 15 . . . Treads 7 | 7 . . . Legs . | . . . . Wheels 2007 | 67 246 613 1081 Hover . | . . . . Flight . | . . . . Fastest Speed 50 | 50 80 95 95 Average Speed 100 | 93 92 103 101 Slowest Speed 160 | 160 95 110 115 Overloaded Moves . | . . . . Propulsion Burnouts . | . . . . Robots Hopped . | . . . . Cave-ins Triggered . | . . . . Exploration Rate (%) 55 | 5 52 96 70 Regions Visited 3 Branch Regions 2 Pre-discovered Areas 1 | . . . 1 Known Exits Taken 2 | . 1 1 . Unknown Exits Taken 1 | 1 . . . Scrap Searched 1 | . . 1 . Spaces Dug 2 | . . . 2 Terrain Destroyed 149 | . . 24 125 Melee 2 | . . . 2 Projectile . | . . . . AOE 147 | . . 24 123 Terrain Rammed . | . . . . Walls Destroyed . | . . . . Machines Disabled . | . . . . Actions | -11 -10 -10 -10 --------- Run | Yrd Mat Min Sub Total 2365 | 152 297 749 1167 Wait 160 | 22 18 101 19 Move 2026 | 88 245 612 1081 Hop . | . . . . Pick Up 35 | 14 4 10 7 Fast Attach 2 | . 1 . 1 Attach 11 | 6 1 1 3 Detach . | . . . . Swap 23 | 4 3 6 10 Drop 15 | . 2 4 9 Fire 88 | 18 23 15 32 Melee 5 | . . . 5 Ram . | . . . . Kick . | . . . . Crush . | . . . . Escape Stasis . | . . . . Rewire . | . . . . Trap . | . . . . Miscellaneous . | . . . . Route ------- -11/Scrapyard -10/Materials (discovered 3 exits: *Mat / *Min x2) -10/Mines (discovered 3 exits: *Mat x2 / *Sub) -10/Subcaves (discovered 3 exits: *Mat x2 / Rec) History --------- Turn | Location | Event 56 | -11/Scrapyard | Discovered new exit (range 13) 186 | -11/Scrapyard | Entered Materials 307 | -10/Materials | Build established: Mutant 308 | -10/Materials | Discovered new exit (range 14) 331 | -10/Materials | Discovered new exit (range 16) 359 | -10/Materials | Discovered new exit (range 14) 492 | -10/Materials | Identified exit to Mines 512 | -10/Materials | Entered Mines 513 | -10/Mines | Met a Derelict testing a Signal Generator 523 | -10/Mines | Identified exit to Materials 628 | -10/Mines | Found a damaged Exp. Sensor Array with a note attached 630 | -10/Mines | Found Prototype Device 674 | -10/Mines | Met a Derelict who couldn't figure out how to use a Trap Extractor 868 | -10/Mines | Received a Rocket Launcher from a helpful Derelict 895 | -10/Mines | Learned Materials emergency access door positions 946 | -10/Mines | Found a hidden stash of uninstalled traps 1165 | -10/Mines | Discovered new exit (range 13) 1178 | -10/Mines | Identified exit to Subcaves 1196 | -10/Mines | Discovered exit to Materials (range 8) 1221 | -10/Mines | A weapon hastily lodged in a ceiling crevice suddenly fell to the ground 1270 | -10/Mines | Build established: Scavenger-Mutant 1311 | -10/Mines | Entered Subcaves 1311 | -10/Subcaves | Accompanied by 1 ally 1464 | -10/Subcaves | Shifting Twisted Machinery released Shrapnel Trap 1466 | -10/Subcaves | Shifting Twisted Machinery released Sub. Monowheel 1518 | -10/Subcaves | Shifting Twisted Machinery released Barrage Gun 1519 | -10/Subcaves | Shifting Twisted Machinery released Piercing Trap 1621 | -10/Subcaves | Core integrity fell below 50% 1839 | -10/Subcaves | Identified exit to Materials 1840 | -10/Subcaves | Discovered exit to Materials (range 8) 1908 | -10/Subcaves | Visited Clippyterm 1911 | -10/Subcaves | Learned location of Extension (-5) 1936 | -10/Subcaves | Identified exit to Recycling 2070 | -10/Subcaves | A swath of the cavern ceiling suddenly collapsed 2256 | -10/Subcaves | Build established: Mutant 2438 | -10/Subcaves | Core integrity fell below 20% 2478 | -10/Subcaves | Ambushed by Subdweller buried in earth 2478 | -10/Subcaves | Ambushed by Subdweller buried in earth 2534 | -10/Subcaves | Shifting Twisted Machinery released Sub. Power Source 2536 | -10/Subcaves | Destroyed self with Rocket Launcher Last Messages --------------- QK-FM2(R) destroyed. Com. Wheel destroyed. MQ-7JD(R) destroyed. VF-4A0(R): "ARGHSUB!" N4-ANL(R): "THANKSYOU!" Com. Wheel destroyed. N4-ANL(R) destroyed. VF-4A0(R) destroyed. %AWFK,VV#Z Lgt. Ion Engine fries itself beyond repair. Acquired 8 matter. Lgt. Ion Engine fries itself beyond repair. Acquired 3 matter. Flight Unit fries itself beyond repair. Lgt. Ion Engine fries itself beyond repair. Lgt. Assault Rifle fries itself beyond repair. Sub. Power Source falls loose from the Twisted Machinery. Machine disabled. Map ----- +----------------------------------------------------+ | ?????????????????????????????????????????????????? | | ?????????????????????????????????????????????????? | | ?????????????????????????????????????????????????? | | ?????????????????????????????????????????????????? | | ?????????????????????????????????????????????????? | | ?????????????????????????????????????????????????? | | ?????????????????????????????????????????????????? | | ?????????????????????????????????????????????????? | | ????????????????????????>????????????????????????? | | ?????????????????????????????????????????????????? | | ??????????????????????????? "????????????????????? | | ????????????????????????? ???????????????????? | | ???????????????????????? ????????????????????? | | ???????????????????????? ????????????????????? | | ???????????????????????? ????????????????????? | | ??????????????????????? ????????????????????? | | ???????????????????????? ##???????????????????? | | ???????????????????????? ##???? ????????????? | | ????????????????????????? ##??# ????????????? | | ????????????????????????? ## ?????????????? | | ?????????????? ? ?????### " " ?????????????? | | ????????????? # ????? " """?????????????? | | ????????????? "????## " " "#???????????? | | ?????????????? "????# ## "" ###?????????? | | ?????????????? ????# #???? ##????????? | | ??????????????# ????###@ ##??? #????????? | | ??????????????#""#??????# #??? #????????? | | ??????????????#""##?????# ##?# #?????????? | | ??????????????#"""##????## "## #?????????? | | ??????????????# " #?????## " #?????????? | | ??????????????## #####???## #??????????? | | ??????????????# # #????### #??????????? | | ?????????????### ##?????# #??????????? | | ???????#####?# ## ####### ##?????????? | | ???????# ### ### # # #?????????? | | ????????# #?## #?????????? | | ????????### ###??### ##### ## #?????????? | | ??????????## ##?????####???## ###??#?????????? | | ???????????## ##??#?????????# #??????????????? | | ?????????#### ## #?????????## #??????????????? | | ????????## ##????????# #??????????????? | | ????????# #????????## #??????????????? | | ????????# #???????## #??????????????? | | ###?????## ## ## ##????#### ###????????????? | | #??????# #####?##?????# # ##???????????? | | #???##### #???????????## #???????????? | | #### ## ##??????????# #???????????? | | ## ## ##?????????# #??????????? | | #?# ##??????? ## #??????????? | | ##?# ##?????# ## #?????????? | +----------------------------------------------------+ Best States ------------- Heat Dissipation 25 Energy Generation 14 Energy Capacity 160 Matter Stores 300 Matter Capacity 300 Sight Range 16 Terrain Scan Density 10 Evasion (%) 50 Recoil Reduction 2 Item Schematics ----------------- None Robot Schematics ------------------ None Fabricated ------------ Nothing Alien Tech Used ----------------- None Achievements -------------- None Challenges ------------ None Game ------ Seed AutogunMissileGenerator Manual? 0 Play Time 00:25:37 Cumulative 58.5 hours Start 2024.05.14 @ 19:41:13 End 2024.05.14 @ 20:06:48 Sessions 1 Manual Loads 0 Difficulty Rogue Special Mode None Game No. 32 Rogue 32 Adventurer 0 Explorer 0 Win Type - Total 2 Types 2/0/0/0/0/0/0/0/0 Lore% 20 Gallery% 46 Achievement% 38 Wizard Run 0 Options --------- Layout 1 ASCII 0 Keyboard 0 Movement Mouse Keybinds 0 Fullscreen 1 Font 24/Smallcaps Map View 50x35 Zoom Use 0% Tactical HUD 0 Map Filters NONE Filters NONE Steam 1 RUN: 9526777b-a2fe-492d-b99f-04face0fc203